[Event "Czech Open-E Teams 2022"]
[Site "Pardubice"]
[Date "2022.07.15"]
[Round "2.2"]
[White "Bujak, Michal"]
[Black "Simacek, Pavel"]
[Result "0-1"]
[ECO "C67"]
[WhiteElo "2149"]
[BlackElo "2458"]
[Annotator "ChessBase"]
[PlyCount "60"]
[EventDate "2022.07.14"]
[EventType "team-tourn"]
[EventCountry "CZE"]
[SourceTitle "playchess.com"]
[Source "ChessBase"]
[SourceQuality "1"]
[TimeControl "5400+30"]

1. e4 {[%emt 0:00:05]} e5 {[%emt 0:00:32]} 2. Nf3 {[%emt 0:00:17]} Nc6 {[%emt 0:00:08]} 3. Bb5 {[%emt 0:00:34]} Nf6 {[%emt 0:00:22]} 4. d4 {[%emt 0:02:59]} Nxe4 {[%emt 0:00:23]} 5. O-O {[%emt 0:00:28]} Nd6 {[%emt 0:00:39]} 6. dxe5 {[%emt 0:01:23]} Nxb5 {[%emt 0:00:11]} 7. a4 {[%emt 0:00:10]} d6 {[%emt 0:00:09]} 8. Re1 {[%emt 0:37:34]} Nxe5 {[%emt 0:08:12]} 9. axb5 {[%emt 0:04:18]} Be6 {[%emt 0:04:00]} 10. Nd4 {[%emt 0:03:51]} Be7 {[%emt 0:07:55]} 11. f4 {[%emt 0:37:11]} Bg4 {[%emt 0:09:05]} 12. Qd2 {[%emt 0:00:08]} Nc4 {[%emt 0:00:21]} 13. Qd3 {[%emt 0:00:11]} d5 {[%emt 0:00:45]} 14. h3 {[%emt 0:05:36]} Bd7 {[%emt 0:07:48]} 15. Nc3 {[%emt 0:00:15]} c6 {[%emt 0:00:12]} 16. b3 {[%emt 0:00:46]} Nd6 {[%emt 0:00:09]} 17. Qe2 {[%emt 0:02:12]} f5 {[%emt 0:19:41]} 18. Qe5 {[%emt 0:00:06]} Ne4 {[%emt 0:03:00]} 19. Ba3 {[%emt 0:00:04]} Kf7 {[%emt 0:02:17]} 20. Nxd5 {[%emt 0:01:35]} Bf6 {[%emt 0:02:16]} 21. Nxf6 {[%emt 0:00:29]} gxf6 {[%emt 0:00:09]} 22. Qe7+ {[%emt 0:00:35]} Qxe7 {[%emt 0:00:07]} 23. Bxe7 {[%emt 0:00:03]} Kxe7 {[%emt 0:00:13]} 24. bxc6 {[%emt 0:00:18]} bxc6 {[%emt 0:01:10]} 25. g4 {[%emt 0:00:25]} Kf7 {[%emt 0:00:22]} 26. Ra6 {[%emt 0:00:52]} c5 {[%emt 0:07:33]} 27. gxf5 {[%emt 0:00:34]} Rhg8+ {[%emt 0:01:06]} 28. Kh2 {[%emt 0:00:13]} Nd2 {[%emt 0:01:45]} 29. Rd1 {[%emt 0:00:40]} cxd4 {[%emt 0:00:20]} 30. Rxd2 {[%emt 0:00:07]} Rgc8 {[%emt 0:00:08]} 0-1

[Event "Czech Open-E Teams 2022"]
[Site "Pardubice"]
[Date "2022.07.15"]
[Round "2.3"]
[White "Vlasak, Lukas"]
[Black "Blecha, Miroslav"]
[Result "1-0"]
[ECO "A48"]
[WhiteElo "2442"]
[BlackElo "2105"]
[Annotator "ChessBase"]
[PlyCount "48"]
[EventDate "2022.07.14"]
[EventType "team-tourn"]
[EventCountry "CZE"]
[SourceTitle "playchess.com"]
[Source "ChessBase"]
[SourceQuality "1"]
[TimeControl "5400+30"]

1. d4 {[%emt 0:00:01]} Nf6 {[%emt 0:00:00]} 2. Nf3 {[%emt 0:00:57]} g6 3. Nc3 {[%emt 0:00:00]} d5 {[%emt 0:02:32]} 4. Bf4 {[%emt 0:00:00]} c6 {[%emt 0:03:50]} 5. e3 {[%emt 0:02:28]} Bg7 {[%emt 0:01:05]} 6. h3 {[%emt 0:00:15]} O-O {[%emt 0:00:06]} 7. Bd3 {[%emt 0:02:20]} Re8 {[%emt 0:02:08]} 8. O-O {[%emt 0:00:54]} Nbd7 {[%emt 0:06:02]} 9. Bh2 {[%emt 0:10:34]} Nh5 {[%emt 0:06:55]} 10. Ne5 {[%emt 0:15:49]} Nxe5 {[%emt 0:19:54]} 11. dxe5 {[%emt 0:00:24]} d4 12. exd4 {[%emt 0:06:03]} Qxd4 {[%emt 0:00:28]} 13. Re1 {[%emt 0:00:24]} Bh6 {[%emt 0:05:33]} 14. Qf3 {[%emt 0:09:00]} Ng7 {[%emt 0:05:34]} 15. a3 {[%emt 0:10:26]} Ne6 {[%emt 0:03:54]} 16. Re4 {[%emt 0:08:26]} Qb6 {[%emt 0:01:41]} 17. Rb4 {[%emt 0:00:13]} Qc7 {[%emt 0:02:58]} 18. Rh4 {[%emt 0:00:50]} Bg7 {[%emt 0:04:01]} 19. Re1 {[%emt 0:00:18]} b6 {[%emt 0:01:21]} 20. Bc4 {[%emt 0:01:48]} Rb8 {[%emt 0:02:08]} 21. Bg3 {[%emt 0:05:42]} b5 {[%emt 0:01:40]} 22. Bb3 {[%emt 0:00:18]} a5 {[%emt 0:00:35]} 23. Ne4 {[%emt 0:06:43]} Bxe5 {[%emt 0:08:18]} 24. Rxh7 {[%emt 0:00:18]} Rf8 {[%emt 0:02:48]} 1-0

[Event "Czech Open-E Teams 2022"]
[Site "Pardubice"]
[Date "2022.07.15"]
[Round "2.4"]
[White "Janocko, Petr"]
[Black "Kraus, Tomas"]
[Result "0-1"]
[ECO "D30"]
[WhiteElo "1944"]
[BlackElo "2488"]
[Annotator "ChessBase"]
[PlyCount "92"]
[EventDate "2022.07.14"]
[EventType "team-tourn"]
[EventCountry "CZE"]
[SourceTitle "playchess.com"]
[Source "ChessBase"]
[SourceQuality "1"]
[TimeControl "5400+30"]

1. d4 {[%emt 0:00:07]} d5 {[%emt 0:00:07]} 2. c4 {[%emt 0:00:16]} e6 {[%emt 0:00:06]} 3. Nf3 {[%emt 0:00:12]} c6 {[%emt 0:00:16]} 4. cxd5 {[%emt 0:00:27]} exd5 {[%emt 0:00:19]} 5. Nc3 {[%emt 0:00:12]} Bf5 {[%emt 0:02:21]} 6. g3 {[%emt 0:00:15]} Be7 {[%emt 0:08:48]} 7. Bg2 {[%emt 0:00:10]} h6 {[%emt 0:00:56]} 8. O-O {[%emt 0:00:37]} Nf6 {[%emt 0:00:31]} 9. Bf4 {[%emt 0:02:05]} O-O {[%emt 0:01:05]} 10. Qb3 {[%emt 0:01:04]} Qb6 {[%emt 0:02:08]} 11. Qxb6 {[%emt 0:00:09]} axb6 {[%emt 0:00:08]} 12. Ne5 {[%emt 0:00:09]} b5 {[%emt 0:07:16]} 13. a3 {[%emt 0:01:19]} Nbd7 {[%emt 0:05:36]} 14. Nxd7 {[%emt 0:02:50]} Nxd7 {[%emt 0:09:38]} 15. e4 {[%emt 0:01:29]} dxe4 {[%emt 0:00:05]} 16. Nxe4 {[%emt 0:00:04]} Bxe4 {[%emt 0:20:51]} 17. Bxe4 {[%emt 0:00:08]} Nf6 {[%emt 0:00:02]} 18. Bf3 {[%emt 0:00:17]} Rfd8 {[%emt 0:01:54]} 19. Be5 {[%emt 0:08:44]} Nd5 {[%emt 0:01:56]} 20. Rfe1 {[%emt 0:02:30]} Bf8 {[%emt 0:02:47]} 21. Red1 {[%emt 0:06:16]} Ra4 {[%emt 0:01:35]} 22. Rd3 {[%emt 0:01:11]} f6 {[%emt 0:09:36]} 23. Bd1 {[%emt 0:13:36]} fxe5 {[%emt 0:02:53]} 24. Bxa4 {[%emt 0:00:05]} e4 {[%emt 0:01:25]} 25. Rb3 {[%emt 0:00:10]} Nc7 {[%emt 0:02:08]} 26. Re3 {[%emt 0:03:35]} bxa4 {[%emt 0:00:06]} 27. Rxe4 {[%emt 0:00:06]} Nd5 {[%emt 0:01:23]} 28. Rd1 {[%emt 0:01:37]} Kf7 {[%emt 0:02:09]} 29. h4 {[%emt 0:00:29]} Be7 {[%emt 0:00:40]} 30. Rd3 {[%emt 0:01:05]} Bf6 {[%emt 0:01:35]} 31. b3 {[%emt 0:00:15]} Ra8 {[%emt 0:00:37]} 32. b4 {[%emt 0:01:35]} Rd8 {[%emt 0:01:27]} 33. Kg2 {[%emt 0:00:23]} Nc7 {[%emt 0:01:24]} 34. f4 {[%emt 0:03:15]} Nb5 {[%emt 0:00:39]} 35. g4 {[%emt 0:00:55]} Bxd4 {[%emt 0:01:52]} 36. g5 {[%emt 0:00:10]} Rd5 {[%emt 0:01:02]} 37. Kf3 {[%emt 0:00:14]} Bb2 {[%emt 0:03:56]} 38. Rde3 {[%emt 0:00:07]} Nd4+ {[%emt 0:01:51]} 39. Kg4 {[%emt 0:01:03]} Nf5 {[%emt 0:00:50]} 40. Rf3 {[%emt 0:00:28]} h5+ {[%emt 0:03:07]} 41. Kh3 {[%emt 0:01:22]} Rd1 {[%emt 0:00:49]} 42. Rc4 {[%emt 0:03:13]} Bd4 {[%emt 0:01:04]} 43. b5 {[%emt 0:01:14]} Rd2 {[%emt 0:00:56]} 44. Rc1 {[%emt 0:02:44]} c5 {[%emt 0:00:18]} 45. b6 {[%emt 0:00:17]} Rb2 {[%emt 0:00:54]} 46. Rd3 {[%emt 0:00:43]} Rxb6 {[%emt 0:00:27]} 0-1

[Event "Czech Open-E Teams 2022"]
[Site "Pardubice"]
[Date "2022.07.15"]
[Round "2.5"]
[White "Neumann, Filip"]
[Black "Roubalik, Jakub"]
[Result "1/2-1/2"]
[ECO "A45"]
[WhiteElo "2113"]
[BlackElo "2380"]
[Annotator "ChessBase"]
[PlyCount "60"]
[EventDate "2022.07.14"]
[EventType "team-tourn"]
[EventCountry "CZE"]
[SourceTitle "playchess.com"]
[Source "ChessBase"]
[SourceQuality "1"]
[TimeControl "5400+30"]

1. d4 {[%emt 0:00:11]} Nf6 {[%emt 0:00:00]} 2. Nc3 {[%emt 0:00:11]} d5 {[%emt 0:00:00]} 3. Bf4 {[%emt 0:00:47]} e6 {[%emt 0:00:03]} 4. e3 a6 {[%emt 0:02:29]} 5. Nf3 {[%emt 0:01:17]} c5 {[%emt 0:00:17]} 6. dxc5 {[%emt 0:00:04]} Bxc5 {[%emt 0:00:46]} 7. Bd3 {[%emt 0:00:04]} Nc6 {[%emt 0:00:49]} 8. O-O {[%emt 0:00:07]} O-O {[%emt 0:01:05]} 9. e4 {[%emt 0:00:04]} h6 {[%emt 0:08:32]} 10. h3 {[%emt 0:08:19]} dxe4 {[%emt 0:04:32]} 11. Nxe4 {[%emt 0:00:49]} Nxe4 {[%emt 0:00:10]} 12. Bxe4 Qf6 {[%emt 0:00:24]} 13. Qc1 {[%emt 0:05:39]} Rd8 {[%emt 0:05:34]} 14. c3 {[%emt 0:00:39]} Bd7 {[%emt 0:00:42]} 15. Be3 {[%emt 0:00:45]} Qe7 {[%emt 0:03:26]} 16. Re1 {[%emt 0:08:18]} Bxe3 {[%emt 0:06:32]} 17. Qxe3 {[%emt 0:00:42]} Be8 {[%emt 0:00:44]} 18. Rad1 {[%emt 0:00:56]} Rxd1 {[%emt 0:22:57]} 19. Rxd1 {[%emt 0:00:26]} Rd8 {[%emt 0:00:26]} 20. Rd2 {[%emt 0:04:22]} Rxd2 {[%emt 0:05:33]} 21. Nxd2 {[%emt 0:01:16]} Qd6 {[%emt 0:04:25]} 22. Nc4 {[%emt 0:01:00]} Qd1+ {[%emt 0:00:40]} 23. Kh2 {[%emt 0:00:08]} b5 {[%emt 0:03:16]} 24. Qc5 {[%emt 0:01:44]} bxc4 {[%emt 0:05:29]} 25. Bxc6 {[%emt 0:00:03]} Bxc6 {[%emt 0:04:20]} 26. Qxc6 {[%emt 0:00:02]} Qd2 {[%emt 0:00:30]} 27. Qc8+ {[%emt 0:02:23]} Kh7 {[%emt 0:00:08]} 28. Qxa6 {[%emt 0:00:24]} Qf4+ {[%emt 0:00:26]} 29. Kg1 {[%emt 0:00:06]} Qc1+ {[%emt 0:00:04]} 30. Kh2 {[%emt 0:00:08]} Qf4+ {[%emt 0:00:03]} 1/2-1/2

[Event "Czech Open-E Teams 2022"]
[Site "Pardubice"]
[Date "2022.07.15"]
[Round "2.6"]
[White "Nemec, Jachym"]
[Black "Winter, Ondrej"]
[Result "0-1"]
[ECO "D02"]
[WhiteElo "2357"]
[BlackElo "2168"]
[Annotator "ChessBase"]
[PlyCount "118"]
[EventDate "2022.07.14"]
[EventType "team-tourn"]
[EventCountry "CZE"]
[SourceTitle "playchess.com"]
[Source "ChessBase"]
[SourceQuality "1"]
[TimeControl "5400+30"]

1. d4 {[%emt 0:00:03]} d5 {[%emt 0:00:31]} 2. Nf3 {[%emt 0:00:08]} Nf6 {[%emt 0:00:29]} 3. c4 {[%emt 0:00:07]} c6 {[%emt 0:00:24]} 4. Qb3 {[%emt 0:00:07]} dxc4 {[%emt 0:00:10]} 5. Qxc4 {[%emt 0:00:07]} Bf5 {[%emt 0:00:57]} 6. g3 {[%emt 0:00:10]} e6 {[%emt 0:00:44]} 7. Bg2 {[%emt 0:00:12]} Nbd7 {[%emt 0:01:24]} 8. O-O {[%emt 0:00:21]} Be7 {[%emt 0:00:50]} 9. e3 {[%emt 0:00:06]} O-O {[%emt 0:00:48]} 10. Qe2 {[%emt 0:00:11]} c5 {[%emt 0:08:20]} 11. h3 {[%emt 0:06:14]} cxd4 {[%emt 0:22:13]} 12. Nxd4 {[%emt 0:03:10]} Be4 {[%emt 0:02:54]} 13. Nc3 {[%emt 0:02:20]} Bxg2 {[%emt 0:01:18]} 14. Kxg2 {[%emt 0:00:08]} Qb6 {[%emt 0:06:51]} 15. Rd1 {[%emt 0:02:20]} Ne5 {[%emt 0:07:48]} 16. e4 {[%emt 0:03:09]} Rac8 {[%emt 0:00:51]} 17. Bf4 {[%emt 0:04:26]} Nc4 {[%emt 0:12:08]} 18. b3 {[%emt 0:06:15]} e5 {[%emt 0:12:16]} 19. Nf5 {[%emt 0:17:06]} Bb4 {[%emt 0:01:27]} 20. Bg5 Bxc3 {[%emt 0:17:23]} 21. Ne7+ {[%emt 0:13:54]} Kh8 {[%emt 0:00:01]} 22. Nxc8 {[%emt 0:00:11]} Rxc8 {[%emt 0:00:02]} 23. Rac1 {[%emt 0:01:11]} Nb2 {[%emt 0:00:48]} 24. Rd2 {[%emt 0:14:43]} Rc6 {[%emt 0:01:06]} 25. Rdc2 {[%emt 0:03:19]} Bd4 {[%emt 0:00:27]} 26. Bxf6 {[%emt 0:04:09]} gxf6 {[%emt 0:00:16]} 27. Qf3 {[%emt 0:00:51]} Rxc2 {[%emt 0:00:49]} 28. Rxc2 {[%emt 0:00:07]} Qe6 {[%emt 0:00:34]} 29. Rc7 {[%emt 0:03:41]} b5 {[%emt 0:00:29]} 30. Rb7 {[%emt 0:01:12]} a6 {[%emt 0:00:31]} 31. h4 {[%emt 0:02:14]} Kg7 {[%emt 0:00:14]} 32. h5 {[%emt 0:00:38]} h6 {[%emt 0:00:27]} 33. Rb8 {[%emt 0:02:04]} Qd7 {[%emt 0:00:57]} 34. Ra8 {[%emt 0:01:27]} Qe6 {[%emt 0:00:25]} 35. Kg1 {[%emt 0:03:55]} b4 {[%emt 0:00:33]} 36. Kg2 {[%emt 0:00:40]} Bc5 {[%emt 0:00:30]} 37. Qe2 {[%emt 0:00:25]} Bd4 {[%emt 0:00:31]} 38. Rxa6 {[%emt 0:00:14]} Qc8 {[%emt 0:00:32]} 39. Ra5 {[%emt 0:01:20]} f5 {[%emt 0:00:29]} 40. a3 {[%emt 0:02:23]} bxa3 {[%emt 0:00:27]} 41. Rxa3 {[%emt 0:00:40]} Qc6 {[%emt 0:00:15]} 42. b4 {[%emt 0:02:03]} Qxe4+ {[%emt 0:00:45]} 43. Qxe4 {[%emt 0:00:30]} fxe4 {[%emt 0:00:01]} 44. b5 {[%emt 0:01:08]} Nc4 {[%emt 0:00:20]} 45. Rb3 {[%emt 0:00:08]} Kf6 {[%emt 0:00:40]} 46. Rb4 {[%emt 0:00:11]} Nb6 {[%emt 0:00:11]} 47. f4 {[%emt 0:01:48]} Kf5 {[%emt 0:00:53]} 48. fxe5 {[%emt 0:00:41]} Kxe5 {[%emt 0:00:12]} 49. g4 {[%emt 0:00:06]} f6 {[%emt 0:00:14]} 50. Kg3 {[%emt 0:00:15]} Be3 {[%emt 0:01:17]} 51. Rb1 {[%emt 0:00:42]} Nd5 {[%emt 0:00:20]} 52. Rb3 {[%emt 0:00:20]} Bb6 {[%emt 0:00:43]} 53. Ra3 {[%emt 0:00:45]} Kd4 {[%emt 0:00:39]} 54. Ra8 {[%emt 0:00:32]} Kc4 {[%emt 0:00:31]} 55. Rh8 {[%emt 0:00:32]} e3 {[%emt 0:00:32]} 56. Kf3 {[%emt 0:00:08]} Nc3 {[%emt 0:00:16]} 57. Rc8+ {[%emt 0:00:32]} Kb4 {[%emt 0:00:32]} 58. Re8 {[%emt 0:01:41]} e2 {[%emt 0:00:42]} 59. Rxe2 {[%emt 0:01:19]} Nxe2 {[%emt 0:00:05]} 0-1

[Event "Czech Open-E Teams 2022"]
[Site "Pardubice"]
[Date "2022.07.15"]
[Round "2.7"]
[White "Vestfal, Jan"]
[Black "Kusa, Jakub"]
[Result "0-1"]
[ECO "D37"]
[WhiteElo "1918"]
[BlackElo "2353"]
[Annotator "ChessBase"]
[PlyCount "84"]
[EventDate "2022.07.14"]
[EventType "team-tourn"]
[EventCountry "CZE"]
[SourceTitle "playchess.com"]
[Source "ChessBase"]
[SourceQuality "1"]
[TimeControl "5400+30"]

1. d4 {[%emt 0:00:05]} d5 {[%emt 0:00:30]} 2. c4 {[%emt 0:00:14]} e6 {[%emt 0:00:09]} 3. Nf3 {[%emt 0:00:26]} Nf6 {[%emt 0:00:40]} 4. Nc3 {[%emt 0:00:28]} Be7 {[%emt 0:00:38]} 5. Bg5 {[%emt 0:00:49]} Nbd7 {[%emt 0:00:43]} 6. e3 {[%emt 0:00:37]} h6 {[%emt 0:00:24]} 7. Bh4 {[%emt 0:00:26]} O-O {[%emt 0:00:52]} 8. Qc2 {[%emt 0:01:24]} c6 {[%emt 0:04:11]} 9. cxd5 {[%emt 0:02:26]} exd5 10. Bd3 {[%emt 0:00:44]} Re8 {[%emt 0:03:06]} 11. O-O {[%emt 0:01:58]} Nh5 {[%emt 0:01:19]} 12. Bxe7 {[%emt 0:00:42]} Qxe7 {[%emt 0:00:13]} 13. Rab1 {[%emt 0:04:12]} a5 {[%emt 0:01:16]} 14. a3 {[%emt 0:05:37]} Nhf6 {[%emt 0:00:42]} 15. b4 {[%emt 0:01:20]} axb4 {[%emt 0:00:48]} 16. axb4 {[%emt 0:00:06]} b5 {[%emt 0:00:53]} 17. Nd2 {[%emt 0:05:32]} Nb6 {[%emt 0:03:09]} 18. e4 {[%emt 0:06:02]} Nc4 {[%emt 0:10:40]} 19. e5 {[%emt 0:07:18]} Nh5 {[%emt 0:04:42]} 20. Bxc4 {[%emt 0:12:37]} bxc4 {[%emt 0:00:56]} 21. b5 {[%emt 0:02:48]} Nf4 {[%emt 0:02:39]} 22. Nf3 {[%emt 0:13:27]} Bg4 {[%emt 0:06:12]} 23. Qd2 {[%emt 0:01:28]} g5 {[%emt 0:04:08]} 24. bxc6 {[%emt 0:02:04]} Ra3 {[%emt 0:06:47]} 25. Rfc1 {[%emt 0:09:01]} Bxf3 {[%emt 0:07:46]} 26. gxf3 {[%emt 0:00:22]} Qe6 {[%emt 0:01:06]} 27. Ne2 {[%emt 0:05:01]} Rxf3 {[%emt 0:00:24]} 28. Nxf4 {[%emt 0:00:57]} Rxf4 {[%emt 0:00:09]} 29. Rc3 {[%emt 0:00:39]} Qxc6 {[%emt 0:00:54]} 30. Rg3 {[%emt 0:03:22]} Kh7 {[%emt 0:01:28]} 31. Ra3 {[%emt 0:04:17]} Ra8 {[%emt 0:02:38]} 32. Rxa8 {[%emt 0:04:58]} Qxa8 {[%emt 0:00:23]} 33. Qc3 {[%emt 0:01:09]} Qc8 {[%emt 0:00:49]} 34. h3 {[%emt 0:00:49]} Qf5 {[%emt 0:01:25]} 35. Rb6 {[%emt 0:01:18]} Rf3 {[%emt 0:02:49]} 36. Qe1 {[%emt 0:01:56]} Rxh3 {[%emt 0:01:34]} 37. Qe2 {[%emt 0:00:38]} Qf4 {[%emt 0:01:12]} 38. Qc2+ {[%emt 0:01:15]} Kg7 {[%emt 0:00:49]} 39. Kf1 {[%emt 0:00:56]} Rh1+ {[%emt 0:01:11]} 40. Kg2 {[%emt 0:00:30]} Qh2+ {[%emt 0:00:18]} 41. Kf3 {[%emt 0:00:13]} Qh3+ {[%emt 0:00:12]} 42. Ke2 {[%emt 0:00:36]} Qf1+ {[%emt 0:00:48]} 0-1

[Event "Czech Open-E Teams 2022"]
[Site "Pardubice"]
[Date "2022.07.15"]
[Round "2.8"]
[White "Pisk, Petr"]
[Black "Dedek, Jan"]
[Result "1-0"]
[ECO "D03"]
[WhiteElo "2329"]
[BlackElo "1876"]
[Annotator "ChessBase"]
[PlyCount "49"]
[EventDate "2022.07.14"]
[EventType "team-tourn"]
[EventCountry "CZE"]
[SourceTitle "playchess.com"]
[Source "ChessBase"]
[SourceQuality "1"]
[TimeControl "5400+30"]

1. d4 {[%emt 0:00:04]} d5 {[%emt 0:00:20]} 2. Nf3 {[%emt 0:00:27]} Nf6 {[%emt 0:00:57]} 3. Bg5 {[%emt 0:00:11]} Ne4 {[%emt 0:01:16]} 4. Bf4 {[%emt 0:01:44]} c5 {[%emt 0:02:17]} 5. e3 {[%emt 0:00:18]} Nc6 {[%emt 0:00:50]} 6. c3 {[%emt 0:00:49]} Qb6 {[%emt 0:04:57]} 7. Qb3 {[%emt 0:02:17]} c4 {[%emt 0:00:17]} 8. Qc2 {[%emt 0:01:19]} Bf5 {[%emt 0:01:43]} 9. Qc1 {[%emt 0:00:41]} h6 {[%emt 0:09:50]} 10. h3 {[%emt 0:00:37]} g5 {[%emt 0:05:30]} 11. Bh2 {[%emt 0:03:04]} Bg7 {[%emt 0:00:54]} 12. Be2 {[%emt 0:06:13]} e5 {[%emt 0:15:48]} 13. O-O {[%emt 0:12:15]} h5 {[%emt 0:13:17]} 14. Nbd2 {[%emt 0:10:06]} Nxd2 {[%emt 0:04:54]} 15. Nxd2 {[%emt 0:03:51]} e4 {[%emt 0:06:07]} 16. f3 {[%emt 0:06:06]} exf3 {[%emt 0:02:11]} 17. Bxf3 {[%emt 0:01:51]} Bd3 {[%emt 0:02:12]} 18. Bxd5 {[%emt 0:01:44]} Bxf1 {[%emt 0:00:14]} 19. Qxf1 {[%emt 0:00:17]} Nd8 {[%emt 0:01:24]} 20. Nxc4 {[%emt 0:02:19]} Qg6 {[%emt 0:00:22]} 21. Nd6+ {[%emt 0:02:12]} Kf8 22. Nf5 {[%emt 0:00:40]} Bf6 {[%emt 0:02:07]} 23. Be4 {[%emt 0:06:53]} Be7 {[%emt 0:01:45]} 24. Be5 {[%emt 0:00:19]} Rh7 {[%emt 0:00:21]} 25. Qd3 1-0

[Event "Czech Open-E Teams 2022"]
[Site "Pardubice"]
[Date "2022.07.15"]
[Round "2.9"]
[White "Cerveny, Martin"]
[Black "Vymazal, Bronislav"]
[Result "1-0"]
[ECO "A46"]
[WhiteElo "2396"]
[BlackElo "2378"]
[Annotator "ChessBase"]
[PlyCount "105"]
[EventDate "2022.07.14"]
[EventType "team-tourn"]
[EventCountry "CZE"]
[SourceTitle "playchess.com"]
[Source "ChessBase"]
[SourceQuality "1"]
[TimeControl "5400+30"]

1. d4 {[%emt 0:00:02]} Nf6 {[%emt 0:07:17]} 2. Nf3 {[%emt 0:00:27]} b5 {[%emt 0:00:08]} 3. e3 {[%emt 0:03:31]} a6 {[%emt 0:00:05]} 4. a4 {[%emt 0:00:52]} b4 {[%emt 0:00:05]} 5. c4 {[%emt 0:00:07]} e6 {[%emt 0:00:05]} 6. b3 {[%emt 0:00:31]} c5 {[%emt 0:00:05]} 7. Bb2 {[%emt 0:01:38]} Bb7 {[%emt 0:00:06]} 8. Nbd2 {[%emt 0:00:16]} Be7 {[%emt 0:00:18]} 9. Bd3 {[%emt 0:01:00]} d6 {[%emt 0:01:15]} 10. dxc5 {[%emt 0:00:48]} dxc5 {[%emt 0:00:08]} 11. Qc2 {[%emt 0:00:05]} Nbd7 {[%emt 0:00:21]} 12. O-O-O {[%emt 0:00:28]} Qc7 {[%emt 0:00:16]} 13. h3 {[%emt 0:03:48]} O-O-O {[%emt 0:07:25]} 14. g4 {[%emt 0:02:52]} h6 {[%emt 0:00:24]} 15. Rhg1 {[%emt 0:00:51]} Ne8 {[%emt 0:00:19]} 16. Ne4 {[%emt 0:04:29]} Rg8 {[%emt 0:24:39]} 17. g5 {[%emt 0:04:22]} Nd6 {[%emt 0:00:50]} 18. h4 {[%emt 0:04:37]} f5 {[%emt 0:09:02]} 19. gxf6 {[%emt 0:06:12]} gxf6 {[%emt 0:00:08]} 20. Nxd6+ {[%emt 0:00:06]} Bxd6 {[%emt 0:00:10]} 21. Rxg8 {[%emt 0:01:07]} Rxg8 {[%emt 0:00:07]} 22. Be4 {[%emt 0:00:06]} Rg4 {[%emt 0:26:19]} 23. Bxb7+ {[%emt 0:00:16]} Kxb7 {[%emt 0:00:27]} 24. Qd3 {[%emt 0:01:41]} Kc6 {[%emt 0:00:14]} 25. a5 {[%emt 0:01:51]} f5 {[%emt 0:04:29]} 26. h5 {[%emt 0:00:19]} Re4 {[%emt 0:07:32]} 27. Nd2 {[%emt 0:04:06]} Rh4 {[%emt 0:01:37]} 28. f4 {[%emt 0:01:50]} Rh2 {[%emt 0:01:59]} 29. Qf1 {[%emt 0:11:09]} Qxa5 {[%emt 0:00:42]} 30. Qg1 {[%emt 0:00:30]} Re2 {[%emt 0:01:43]} 31. Kc2 {[%emt 0:05:51]} Qa2 {[%emt 0:03:14]} 32. Qg3 {[%emt 0:06:42]} Kc7 {[%emt 0:00:44]} 33. Qf3 {[%emt 0:00:58]} Rh2 {[%emt 0:00:05]} 34. Qg3 {[%emt 0:06:49]} Re2 {[%emt 0:00:06]} 35. Kd3 {[%emt 0:00:44]} Rxd2+ {[%emt 0:00:22]} 36. Rxd2 {[%emt 0:00:04]} Qxb3+ {[%emt 0:00:05]} 37. Ke2 {[%emt 0:00:04]} Qxc4+ {[%emt 0:00:17]} 38. Kf2 {[%emt 0:00:08]} Qe4 {[%emt 0:03:21]} 39. Qg7 {[%emt 0:00:18]} Qc6 {[%emt 0:01:01]} 40. Qxh6 {[%emt 0:01:24]} c4 {[%emt 0:00:14]} 41. Qxe6 {[%emt 0:01:12]} c3 {[%emt 0:00:05]} 42. Bxc3 {[%emt 0:01:10]} bxc3 {[%emt 0:00:05]} 43. Rc2 {[%emt 0:00:04]} Bb4 {[%emt 0:02:17]} 44. Qxf5 {[%emt 0:00:46]} Qh1 {[%emt 0:00:35]} 45. Kg3 {[%emt 0:02:22]} Nc5 {[%emt 0:00:10]} 46. Rg2 {[%emt 0:02:13]} Qe1+ {[%emt 0:01:27]} 47. Kg4 {[%emt 0:00:12]} Qf1 {[%emt 0:00:52]} 48. Qd5 {[%emt 0:02:29]} Qh1 {[%emt 0:00:23]} 49. Kg5 {[%emt 0:01:02]} Qb1 {[%emt 0:00:47]} 50. Qf7+ {[%emt 0:00:21]} Kb6 {[%emt 0:00:16]} 51. Qg6+ {[%emt 0:00:58]} Qxg6+ {[%emt 0:00:04]} 52. hxg6 {[%emt 0:00:19]} Ne4+ {[%emt 0:01:07]} 53. Kf5 {[%emt 0:00:17]} 1-0

[Event "Czech Open-E Teams 2022"]
[Site "Pardubice"]
[Date "2022.07.15"]
[Round "2.10"]
[White "Micanek, Tomas"]
[Black "Szotkowski, Jakub"]
[Result "1-0"]
[ECO "B19"]
[WhiteElo "2124"]
[BlackElo "2344"]
[Annotator "ChessBase"]
[PlyCount "86"]
[EventDate "2022.07.14"]
[EventType "team-tourn"]
[EventCountry "CZE"]
[SourceTitle "playchess.com"]
[Source "ChessBase"]
[SourceQuality "1"]
[TimeControl "5400+30"]

1. e4 {[%emt 0:00:01]} c6 {[%emt 0:04:48]} 2. d4 {[%emt 0:00:05]} d5 {[%emt 0:00:07]} 3. Nd2 {[%emt 0:00:23]} dxe4 {[%emt 0:01:05]} 4. Nxe4 {[%emt 0:00:02]} Bf5 {[%emt 0:01:02]} 5. Ng3 {[%emt 0:00:06]} Bg6 {[%emt 0:00:05]} 6. h4 {[%emt 0:01:08]} h6 {[%emt 0:00:13]} 7. Nf3 {[%emt 0:00:05]} Nd7 {[%emt 0:00:06]} 8. h5 {[%emt 0:01:27]} Bh7 {[%emt 0:00:06]} 9. Bd3 {[%emt 0:00:04]} Bxd3 {[%emt 0:00:06]} 10. Qxd3 {[%emt 0:00:01]} e6 {[%emt 0:00:17]} 11. Bf4 {[%emt 0:05:21]} Qa5+ {[%emt 0:01:17]} 12. Bd2 {[%emt 0:00:22]} Bb4 {[%emt 0:00:08]} 13. c3 {[%emt 0:00:13]} Be7 {[%emt 0:00:07]} 14. c4 {[%emt 0:04:21]} Qc7 {[%emt 0:00:07]} 15. Bc3 {[%emt 0:04:37]} Ngf6 {[%emt 0:01:18]} 16. Ne5 {[%emt 0:06:35]} Nxe5 {[%emt 0:13:20]} 17. dxe5 {[%emt 0:00:31]} Rd8 {[%emt 0:01:00]} 18. Qe2 {[%emt 0:06:13]} Nd7 {[%emt 0:01:16]} 19. f4 {[%emt 0:07:18]} O-O {[%emt 0:06:56]} 20. O-O {[%emt 0:10:50]} Nc5 {[%emt 0:16:28]} 21. Rf3 Rd7 {[%emt 0:01:29]} 22. b4 {[%emt 0:10:26]} Na4 23. c5 {[%emt 0:01:06]} Nxc3 {[%emt 0:06:09]} 24. Rxc3 {[%emt 0:00:02]} f5 {[%emt 0:00:49]} 25. Qc4 {[%emt 0:01:49]} Rd5 {[%emt 0:01:37]} 26. Nf1 {[%emt 0:04:22]} Qd7 {[%emt 0:04:40]} 27. Qb3 {[%emt 0:05:46]} Rd4 {[%emt 0:09:58]} 28. Ne3 {[%emt 0:01:33]} Rxf4 {[%emt 0:01:42]} 29. Rd1 {[%emt 0:00:16]} Rd4 {[%emt 0:00:05]} 30. Rcd3 {[%emt 0:00:05]} Rd5 {[%emt 0:11:47]} 31. Nxd5 {[%emt 0:03:53]} exd5 {[%emt 0:00:10]} 32. Re1 {[%emt 0:03:50]} Qe6 {[%emt 0:01:36]} 33. Rg3 {[%emt 0:04:02]} f4 {[%emt 0:01:55]} 34. Rg6 {[%emt 0:02:13]} Qf5 {[%emt 0:00:24]} 35. Qf3 {[%emt 0:00:45]} Bh4 {[%emt 0:02:16]} 36. Rf1 {[%emt 0:08:52]} Qxe5 {[%emt 0:00:16]} 37. Qg4 {[%emt 0:03:37]} Bg5 {[%emt 0:03:52]} 38. Qd7 {[%emt 0:00:15]} Rf7 {[%emt 0:02:46]} 39. Qc8+ {[%emt 0:00:03]} Kh7 {[%emt 0:01:23]} 40. a3 {[%emt 0:03:35]} f3 {[%emt 0:01:13]} 41. Qg4 {[%emt 0:02:44]} f2+ {[%emt 0:00:31]} 42. Kh1 {[%emt 0:01:29]} Rf4 {[%emt 0:00:10]} 43. Re6 {[%emt 0:00:56]} Rxg4 1-0